[Event "*** Titled Tuesday Blitz"]
[Site "Chess.com"]
[Date "2020.11.10"]
[Round "7"]
[White "Grandelicious"]
[Black "asms9699"]
[Result "1-0"]
[WhiteElo "2801"]
[BlackElo "2592"]
[TimeControl "180+1"]
[EndTime "11:22:08 PST"]
[Termination "Grandelicious won on time"]

1. e4 {[%clk 0:03:00.9]} 1... e6 {[%clk 0:02:59.5]} 2. d4 {[%clk 0:03:00.8]}
2... d5 {[%clk 0:03:00.1]} 3. e5 {[%clk 0:03:01.5]} 3... c5 {[%clk 0:03:00]} 4.
c3 {[%clk 0:03:02.2]} 4... Qb6 {[%clk 0:03:00.6]} 5. Nf3 {[%clk 0:03:02.9]} 5...
Nc6 {[%clk 0:03:00.7]} 6. Bd3 {[%clk 0:03:02.4]} 6... Bd7 {[%clk 0:03:00.4]} 7.
O-O {[%clk 0:03:02]} 7... cxd4 {[%clk 0:02:51.8]} 8. Re1 {[%clk 0:03:01.5]} 8...
dxc3 {[%clk 0:02:47.2]} 9. Nxc3 {[%clk 0:02:59.2]} 9... Nge7 {[%clk 0:02:47.2]}
10. h4 {[%clk 0:02:51.1]} 10... a6 {[%clk 0:02:39]} 11. h5 {[%clk 0:02:45.6]}
11... h6 {[%clk 0:02:34.8]} 12. a3 {[%clk 0:02:42.8]} 12... Na5 {[%clk
0:02:25.2]} 13. b4 {[%clk 0:02:21.2]} 13... Nc4 {[%clk 0:02:11.8]} 14. Bxc4
{[%clk 0:02:12]} 14... dxc4 {[%clk 0:02:12.7]} 15. Nd2 {[%clk 0:02:12.6]} 15...
Rc8 {[%clk 0:01:59.7]} 16. Nde4 {[%clk 0:02:00.8]} 16... Nd5 {[%clk 0:01:36.2]}
17. Nxd5 {[%clk 0:01:50.2]} 17... exd5 {[%clk 0:01:36.1]} 18. Qxd5 {[%clk
0:01:02.9]} 18... Be6 {[%clk 0:01:34.1]} 19. Qd1 {[%clk 0:01:02.6]} 19... Rd8
{[%clk 0:01:10.9]} 20. Qf3 {[%clk 0:00:56.7]} 20... Rd3 {[%clk 0:00:57.1]} 21.
Be3 {[%clk 0:00:51.1]} 21... Qc6 {[%clk 0:00:52.3]} 22. Qf4 {[%clk 0:00:43.7]}
22... Be7 {[%clk 0:00:48.6]} 23. Rac1 {[%clk 0:00:29.1]} 23... b5 {[%clk
0:00:35.6]} 24. Bc5 {[%clk 0:00:26.2]} 24... Bxc5 {[%clk 0:00:25.3]} 25. Nxc5
{[%clk 0:00:27.1]} 25... Rd5 {[%clk 0:00:23.6]} 26. Rc3 {[%clk 0:00:23.7]} 26...
O-O {[%clk 0:00:16]} 27. Rg3 {[%clk 0:00:23.4]} 27... Kh8 {[%clk 0:00:16.3]} 28.
Ree3 {[%clk 0:00:23.2]} 28... a5 {[%clk 0:00:14.6]} 29. Rxg7 {[%clk 0:00:14.6]}
29... Kxg7 {[%clk 0:00:13.9]} 30. Rg3+ {[%clk 0:00:15.1]} 30... Kh7 {[%clk
0:00:14.2]} 31. Ne4 {[%clk 0:00:13.6]} 31... f5 {[%clk 0:00:07.7]} 32. Nf6+
{[%clk 0:00:09.8]} 32... Rxf6 {[%clk 0:00:07.7]} 33. exf6 {[%clk 0:00:10.7]}
33... Rd7 {[%clk 0:00:07.9]} 34. Rg6 {[%clk 0:00:10.1]} 1-0

[Event "*** Titled Tuesday Blitz"]
[Site "Chess.com"]
[Date "2020.11.10"]
[Round "7"]
[White "ErikBlomqvist"]
[Black "Sergienko_Sergey"]
[Result "1-0"]
[WhiteElo "2464"]
[BlackElo "2286"]
[TimeControl "180+1"]
[EndTime "11:22:08 PST"]
[Termination "ErikBlomqvist won by resignation"]

1. e4 {[%clk 0:03:00.9]} 1... c5 {[%clk 0:02:58.7]} 2. Nf3 {[%clk 0:03:00.8]}
2... a6 {[%clk 0:02:58.3]} 3. c3 {[%clk 0:02:56.5]} 3... e6 {[%clk 0:02:57.6]}
4. d4 {[%clk 0:02:55.9]} 4... d5 {[%clk 0:02:57.2]} 5. e5 {[%clk 0:02:56.3]}
5... Bd7 {[%clk 0:02:56.6]} 6. Bd3 {[%clk 0:02:52.9]} 6... Nc6 {[%clk
0:02:55.8]} 7. O-O {[%clk 0:02:50.1]} 7... cxd4 {[%clk 0:02:54.9]} 8. cxd4
{[%clk 0:02:50.1]} 8... Qb6 {[%clk 0:02:54.7]} 9. Be2 {[%clk 0:02:39.7]} 9...
Nge7 {[%clk 0:02:49.9]} 10. Nc3 {[%clk 0:02:39.1]} 10... Nf5 {[%clk 0:02:48.8]}
11. Na4 {[%clk 0:02:39.6]} 11... Qa7 {[%clk 0:02:40.9]} 12. Be3 {[%clk
0:02:32.8]} 12... Be7 {[%clk 0:02:31.3]} 13. Rc1 {[%clk 0:02:31.7]} 13... O-O
{[%clk 0:02:16.2]} 14. Nc5 {[%clk 0:02:25.5]} 14... Rad8 {[%clk 0:02:11.7]} 15.
Bd3 {[%clk 0:02:13.2]} 15... Nxe3 {[%clk 0:02:07.6]} 16. fxe3 {[%clk 0:02:14.1]}
16... Nb8 {[%clk 0:01:20.5]} 17. Qc2 {[%clk 0:01:42.7]} 17... g6 {[%clk
0:01:17.7]} 18. Qb3 {[%clk 0:01:40.1]} 18... b6 {[%clk 0:01:08.7]} 19. Nxd7
{[%clk 0:01:35]} 19... Nxd7 {[%clk 0:00:59]} 20. Rc6 {[%clk 0:01:32.5]} 20...
Rc8 {[%clk 0:00:52.3]} 21. Qa4 {[%clk 0:01:21.4]} 21... Rxc6 {[%clk 0:00:30.2]}
22. Qxc6 {[%clk 0:01:20.9]} 22... b5 {[%clk 0:00:27]} 23. Rc1 {[%clk 0:01:11.3]}
23... Ra8 {[%clk 0:00:21.9]} 24. Qc7 {[%clk 0:01:00.2]} 24... Kg7 {[%clk
0:00:20.8]} 25. h4 {[%clk 0:00:54.9]} 25... Bd8 {[%clk 0:00:18.8]} 26. Qxa7
{[%clk 0:00:40]} 26... Rxa7 {[%clk 0:00:18.3]} 27. Rc8 {[%clk 0:00:40.6]} 27...
Bb6 {[%clk 0:00:14.1]} 28. Ng5 {[%clk 0:00:36.9]} 28... h6 {[%clk 0:00:13]} 29.
Nf3 {[%clk 0:00:34.8]} 29... Rc7 {[%clk 0:00:13]} 30. Ra8 {[%clk 0:00:35]} 30...
Ra7 {[%clk 0:00:12.7]} 31. Re8 {[%clk 0:00:34.5]} 31... Rc7 {[%clk 0:00:12.3]}
32. Kf2 {[%clk 0:00:32.1]} 32... Ba7 {[%clk 0:00:11.1]} 33. Nh2 {[%clk
0:00:27.3]} 33... Nb6 {[%clk 0:00:10.4]} 34. b3 {[%clk 0:00:24.3]} 34... h5
{[%clk 0:00:09.6]} 35. Nf3 {[%clk 0:00:24]} 35... Rc8 {[%clk 0:00:09.1]} 36. Re7
{[%clk 0:00:23.7]} 36... Bb8 {[%clk 0:00:09]} 37. Ng5 {[%clk 0:00:23.9]} 1-0

[Event "*** Titled Tuesday Blitz"]
[Site "Chess.com"]
[Date "2020.11.10"]
[Round "7"]
[White "Xeniya2005"]
[Black "ViktoriyaTarasova"]
[Result "1-0"]
[WhiteElo "2389"]
[BlackElo "2256"]
[TimeControl "180+1"]
[EndTime "11:22:08 PST"]
[Termination "Xeniya2005 won by resignation"]

1. e4 {[%clk 0:03:00.9]} 1... e5 {[%clk 0:02:56.5]} 2. Nf3 {[%clk 0:02:58.6]}
2... Nc6 {[%clk 0:02:55.3]} 3. Nc3 {[%clk 0:02:56.5]} 3... Nf6 {[%clk
0:02:55.1]} 4. Bb5 {[%clk 0:02:55.5]} 4... Bc5 {[%clk 0:02:53.8]} 5. O-O {[%clk
0:02:48.1]} 5... O-O {[%clk 0:02:53.3]} 6. Nxe5 {[%clk 0:02:43.1]} 6... Nxe5
{[%clk 0:02:51.3]} 7. d4 {[%clk 0:02:38.3]} 7... Bd6 {[%clk 0:02:47.5]} 8. f4
{[%clk 0:02:37.9]} 8... Neg4 {[%clk 0:02:47.7]} 9. e5 {[%clk 0:02:36.4]} 9...
Be7 {[%clk 0:02:48.2]} 10. f5 {[%clk 0:02:32.6]} 10... d6 {[%clk 0:02:45.7]} 11.
exf6 {[%clk 0:02:24]} 11... Nxf6 {[%clk 0:02:44.9]} 12. Qf3 {[%clk 0:02:19.3]}
12... c6 {[%clk 0:02:44.1]} 13. Bd3 {[%clk 0:02:10.9]} 13... d5 {[%clk
0:02:43.8]} 14. Bf4 {[%clk 0:02:04.5]} 14... Bd7 {[%clk 0:02:27.8]} 15. Ne2
{[%clk 0:02:00.4]} 15... Re8 {[%clk 0:02:25.9]} 16. Ng3 {[%clk 0:01:58.5]} 16...
Bf8 {[%clk 0:02:23.6]} 17. Be5 {[%clk 0:01:54.1]} 17... Be7 {[%clk 0:02:13.9]}
18. Kh1 {[%clk 0:01:52.2]} 18... c5 {[%clk 0:02:06.4]} 19. c3 {[%clk 0:01:44.2]}
19... Bc6 {[%clk 0:02:04.7]} 20. Rae1 {[%clk 0:01:38]} 20... cxd4 {[%clk
0:01:51.9]} 21. cxd4 {[%clk 0:01:34.8]} 21... Bb4 {[%clk 0:01:49.3]} 22. Re2
{[%clk 0:01:32.4]} 22... Nd7 {[%clk 0:01:17.6]} 23. f6 {[%clk 0:01:25.5]} 23...
g6 {[%clk 0:01:13.2]} 24. Nf5 {[%clk 0:01:11]} 24... Nxe5 {[%clk 0:01:10.7]} 25.
dxe5 {[%clk 0:01:03.5]} 25... d4 {[%clk 0:01:08.1]} 26. Nh6+ {[%clk 0:00:52.3]}
26... Kf8 {[%clk 0:01:07]} 27. Qf4 {[%clk 0:00:49.8]} 27... Qd7 {[%clk
0:01:01.3]} 28. Ng4 {[%clk 0:00:30.9]} 28... Kg8 {[%clk 0:00:58.9]} 29. h4
{[%clk 0:00:27.5]} 29... h5 {[%clk 0:00:35.6]} 30. Nh6+ {[%clk 0:00:18.9]} 30...
Kh7 {[%clk 0:00:35.8]} 31. Qg5 {[%clk 0:00:18.3]} 31... Bf8 {[%clk 0:00:27.7]}
32. Nxf7 {[%clk 0:00:18.2]} 32... Qxf7 {[%clk 0:00:27.2]} 33. e6 {[%clk
0:00:18.2]} 33... Rxe6 {[%clk 0:00:16.1]} 34. Rxe6 {[%clk 0:00:17.3]} 34... Bh6
{[%clk 0:00:16.4]} 35. Bxg6+ {[%clk 0:00:15.2]} 35... Qxg6 {[%clk 0:00:11.2]}
36. Re7+ {[%clk 0:00:15.3]} 1-0

[Event "*** Titled Tuesday Blitz"]
[Site "Chess.com"]
[Date "2020.11.10"]
[Round "7"]
[White "oskariot"]
[Black "crazy_but_lazy"]
[Result "1-0"]
[WhiteElo "2699"]
[BlackElo "2477"]
[TimeControl "180+1"]
[EndTime "11:22:09 PST"]
[Termination "oskariot won by resignation"]

1. e4 {[%clk 0:03:00.9]} 1... c6 {[%clk 0:02:57.5]} 2. d4 {[%clk 0:03:00.8]}
2... d5 {[%clk 0:02:57.7]} 3. Nd2 {[%clk 0:03:01.5]} 3... dxe4 {[%clk
0:02:57.7]} 4. Nxe4 {[%clk 0:03:02.4]} 4... Bf5 {[%clk 0:02:57.8]} 5. Ng3 {[%clk
0:03:03.1]} 5... Bg6 {[%clk 0:02:58.2]} 6. c3 {[%clk 0:03:04]} 6... e6 {[%clk
0:02:54.6]} 7. Nh3 {[%clk 0:03:02.9]} 7... Bd6 {[%clk 0:02:54.2]} 8. Nf4 {[%clk
0:03:03.2]} 8... Qc7 {[%clk 0:02:54.2]} 9. Qf3 {[%clk 0:03:03]} 9... Nf6 {[%clk
0:02:50.9]} 10. h4 {[%clk 0:03:03.2]} 10... Nbd7 {[%clk 0:02:39.9]} 11. h5
{[%clk 0:03:02.6]} 11... Bc2 {[%clk 0:02:39.1]} 12. h6 {[%clk 0:03:02.5]} 12...
g6 {[%clk 0:02:36.2]} 13. Bd3 {[%clk 0:03:01.9]} 13... Bxd3 {[%clk 0:02:36]} 14.
Nxd3 {[%clk 0:03:02.8]} 14... O-O-O {[%clk 0:02:33.2]} 15. Bg5 {[%clk
0:03:02.6]} 15... Be7 {[%clk 0:02:33.5]} 16. O-O {[%clk 0:03:00.8]} 16... Rhf8
{[%clk 0:02:22.8]} 17. a4 {[%clk 0:03:00.8]} 17... Nd5 {[%clk 0:02:16.3]} 18.
Bd2 {[%clk 0:02:55.2]} 18... e5 {[%clk 0:01:58.9]} 19. c4 {[%clk 0:02:33.2]}
19... N5b6 {[%clk 0:01:45]} 20. b3 {[%clk 0:02:26.5]} 20... exd4 {[%clk
0:01:39.6]} 21. a5 {[%clk 0:02:26.7]} 21... Na8 {[%clk 0:01:38.1]} 22. a6 {[%clk
0:02:21.2]} 22... b6 {[%clk 0:01:32.8]} 23. b4 {[%clk 0:02:08.6]} 23... f6
{[%clk 0:01:14.7]} 24. Bf4 {[%clk 0:01:16.3]} 24... Ne5 {[%clk 0:01:09.8]} 25.
Bxe5 {[%clk 0:01:16.4]} 25... fxe5 {[%clk 0:01:09.4]} 26. Qg4+ {[%clk
0:01:11.1]} 26... Kb8 {[%clk 0:01:05.5]} 27. Rae1 {[%clk 0:00:59.1]} 27... Bf6
{[%clk 0:00:25.4]} 28. Ne4 {[%clk 0:00:52.1]} 28... Qc8 {[%clk 0:00:10.3]} 29.
Qg3 {[%clk 0:00:34.7]} 29... Bh8 {[%clk 0:00:08.3]} 30. Ng5 {[%clk 0:00:33.3]}
30... Rf5 {[%clk 0:00:06.6]} 31. Nxe5 {[%clk 0:00:28.7]} 31... Nc7 {[%clk
0:00:03.4]} 32. Nxc6+ {[%clk 0:00:26.6]} 32... Ka8 {[%clk 0:00:04.1]} 33. Nxd8
{[%clk 0:00:26.1]} 33... Qxd8 {[%clk 0:00:05]} 34. Ne6 {[%clk 0:00:20.8]} 34...
Nxe6 {[%clk 0:00:05]} 35. Rxe6 {[%clk 0:00:21.7]} 35... d3 {[%clk 0:00:05.9]}
36. Qxd3 {[%clk 0:00:17.9]} 36... Qxd3 {[%clk 0:00:05]} 37. Re8+ {[%clk
0:00:17.9]} 1-0

[Event "*** Titled Tuesday Blitz"]
[Site "Chess.com"]
[Date "2020.11.10"]
[Round "7"]
[White "mapleaff"]
[Black "maximnovik"]
[Result "1-0"]
[WhiteElo "2393"]
[BlackElo "2511"]
[TimeControl "180+1"]
[EndTime "11:22:11 PST"]
[Termination "mapleaff won by resignation"]

1. e4 {[%clk 0:03:00.9]} 1... c6 {[%clk 0:02:46.2]} 2. Nf3 {[%clk 0:03:00]} 2...
d5 {[%clk 0:02:45.3]} 3. d3 {[%clk 0:03:00.9]} 3... g6 {[%clk 0:02:42.8]} 4. Nc3
{[%clk 0:02:57.1]} 4... Bg7 {[%clk 0:02:43.1]} 5. h4 {[%clk 0:02:55.1]} 5... Bg4
{[%clk 0:02:42.5]} 6. Be2 {[%clk 0:02:53.2]} 6... e6 {[%clk 0:02:32]} 7. Bg5
{[%clk 0:02:31.5]} 7... Qb6 {[%clk 0:02:30.3]} 8. Qc1 {[%clk 0:02:24.4]} 8... h6
{[%clk 0:02:28.7]} 9. Bf4 {[%clk 0:02:21.6]} 9... Nd7 {[%clk 0:02:20.4]} 10. a4
{[%clk 0:02:18.1]} 10... a5 {[%clk 0:02:16.6]} 11. Ra3 {[%clk 0:02:14.7]} 11...
Ne7 {[%clk 0:02:00.9]} 12. Rb3 {[%clk 0:02:10.3]} 12... Qa7 {[%clk 0:02:00.9]}
13. Bd6 {[%clk 0:02:07.2]} 13... Nc8 {[%clk 0:01:53.1]} 14. Ba3 {[%clk
0:01:59.6]} 14... Nc5 {[%clk 0:01:52]} 15. Bxc5 {[%clk 0:01:58.2]} 15... Qxc5
{[%clk 0:01:51.5]} 16. Qf4 {[%clk 0:01:54.9]} 16... Bxf3 {[%clk 0:01:44.4]} 17.
Bxf3 {[%clk 0:01:46.3]} 17... d4 {[%clk 0:01:44.3]} 18. Ne2 {[%clk 0:01:45.8]}
18... Qxc2 {[%clk 0:01:32.7]} 19. Rxb7 {[%clk 0:01:44.5]} 19... O-O {[%clk
0:01:31.3]} 20. O-O {[%clk 0:01:36.7]} 20... Qxd3 {[%clk 0:01:29.5]} 21. e5
{[%clk 0:01:25.5]} 21... Qa6 {[%clk 0:01:18.9]} 22. Rd7 {[%clk 0:01:17.4]} 22...
Nb6 {[%clk 0:01:13]} 23. Rd6 {[%clk 0:01:15.2]} 23... Nd5 {[%clk 0:01:11.8]} 24.
Bxd5 {[%clk 0:01:09.7]} 24... cxd5 {[%clk 0:01:10.3]} 25. Rxa6 {[%clk
0:01:07.7]} 25... Rxa6 {[%clk 0:01:09.5]} 26. Nxd4 {[%clk 0:01:06.8]} 26... Rb6
{[%clk 0:01:08.1]} 27. Nb5 {[%clk 0:01:06.8]} 27... Rc8 {[%clk 0:01:07]} 28. Rc1
{[%clk 0:01:06.9]} 28... Rbc6 {[%clk 0:01:06.4]} 29. Rxc6 {[%clk 0:01:04.8]}
29... Rxc6 {[%clk 0:01:06.8]} 30. Qd4 {[%clk 0:00:53.4]} 30... Rc4 {[%clk
0:01:06]} 31. Qa7 {[%clk 0:00:47.8]} 31... Bxe5 {[%clk 0:01:04.4]} 32. g3 {[%clk
0:00:40.3]} 32... Rxa4 {[%clk 0:01:03.9]} 33. Qa8+ {[%clk 0:00:27.4]} 33... Kg7
{[%clk 0:01:03.1]} 34. Na7 {[%clk 0:00:27.2]} 34... Rb4 {[%clk 0:00:59.7]} 35.
Nc6 {[%clk 0:00:26.3]} 35... Re4 {[%clk 0:00:45]} 36. Nxe5 {[%clk 0:00:24]}
36... Rxe5 {[%clk 0:00:45.1]} 37. Qxa5 {[%clk 0:00:24.4]} 37... Re2 {[%clk
0:00:43.6]} 38. Kf1 {[%clk 0:00:22.2]} 38... Rc2 {[%clk 0:00:41.1]} 39. b4
{[%clk 0:00:20.5]} 39... d4 {[%clk 0:00:40.2]} 40. Qe5+ {[%clk 0:00:20.5]} 40...
Kg8 {[%clk 0:00:39.7]} 41. Qxd4 {[%clk 0:00:20.5]} 41... h5 {[%clk 0:00:36.4]}
42. Kg2 {[%clk 0:00:20.1]} 42... Rc1 {[%clk 0:00:31.7]} 43. b5 {[%clk
0:00:19.9]} 43... Rb1 {[%clk 0:00:31.9]} 44. b6 {[%clk 0:00:20.1]} 44... Rb5
{[%clk 0:00:31.6]} 45. Qd8+ {[%clk 0:00:19]} 45... Kg7 {[%clk 0:00:31.2]} 46.
Qc7 {[%clk 0:00:19.6]} 46... Rb2 {[%clk 0:00:29.8]} 47. Qe5+ {[%clk 0:00:18.6]}
1-0

[Event "*** Titled Tuesday Blitz"]
[Site "Chess.com"]
[Date "2020.11.10"]
[Round "7"]
[White "Javylavilla"]
[Black "Klavdia_Nik"]
[Result "1-0"]
[WhiteElo "2255"]
[BlackElo "2110"]
[TimeControl "180+1"]
[EndTime "11:22:11 PST"]
[Termination "Javylavilla won on time"]

1. e4 {[%clk 0:03:00.9]} 1... g6 {[%clk 0:02:56.8]} 2. d4 {[%clk 0:03:00.1]}
2... d6 {[%clk 0:02:54.1]} 3. Nc3 {[%clk 0:03:01]} 3... Bg7 {[%clk 0:02:54]} 4.
f4 {[%clk 0:02:59]} 4... c5 {[%clk 0:02:48.6]} 5. d5 {[%clk 0:02:57.2]} 5... Nf6
{[%clk 0:02:39.1]} 6. Nf3 {[%clk 0:02:56.7]} 6... O-O {[%clk 0:02:39.1]} 7. Bc4
{[%clk 0:02:55.1]} 7... Na6 {[%clk 0:02:20.2]} 8. O-O {[%clk 0:02:51.6]} 8...
Nc7 {[%clk 0:02:15.3]} 9. a4 {[%clk 0:02:50.7]} 9... b6 {[%clk 0:02:14.9]} 10.
e5 {[%clk 0:02:48.5]} 10... Nfe8 {[%clk 0:02:11.2]} 11. Ne4 {[%clk 0:02:39]}
11... Ba6 {[%clk 0:02:07.3]} 12. Bxa6 {[%clk 0:02:33.3]} 12... Nxa6 {[%clk
0:02:04.2]} 13. c4 {[%clk 0:02:34.2]} 13... Nb4 {[%clk 0:01:59.2]} 14. e6 {[%clk
0:02:31.7]} 14... fxe6 {[%clk 0:01:33.9]} 15. dxe6 {[%clk 0:02:32.6]} 15... Qc8
{[%clk 0:01:16.1]} 16. Re1 {[%clk 0:02:08.3]} 16... Nc7 {[%clk 0:01:02.3]} 17.
Nxd6 {[%clk 0:01:52]} 17... exd6 {[%clk 0:00:59.7]} 18. e7 {[%clk 0:01:52.9]}
18... Rf6 {[%clk 0:00:47.2]} 19. Ng5 {[%clk 0:01:49.6]} 19... Qf5 {[%clk
0:00:27.7]} 20. Qf3 {[%clk 0:01:38.5]} 20... d5 {[%clk 0:00:14.5]} 21. cxd5
{[%clk 0:01:34.3]} 21... Nbxd5 {[%clk 0:00:13.7]} 22. g4 {[%clk 0:01:28.1]}
22... Qd7 {[%clk 0:00:13.4]} 23. Ra3 {[%clk 0:01:20]} 23... Re8 {[%clk
0:00:11.6]} 24. Rd3 {[%clk 0:01:14.4]} 24... Rd6 {[%clk 0:00:06.2]} 25. f5
{[%clk 0:01:10.8]} 25... Bd4+ {[%clk 0:00:05.6]} 26. Rxd4 {[%clk 0:00:55.5]}
26... cxd4 {[%clk 0:00:04.6]} 27. Bf4 {[%clk 0:00:56.4]} 27... Rxe7 {[%clk
0:00:03.7]} 28. Rxe7 {[%clk 0:00:54.1]} 28... Qxe7 {[%clk 0:00:04.3]} 29. Bxd6
{[%clk 0:00:53.5]} 29... Qe3+ {[%clk 0:00:04.3]} 30. Qxe3 {[%clk 0:00:52.4]}
30... dxe3 {[%clk 0:00:04.4]} 31. fxg6 {[%clk 0:00:45.8]} 31... hxg6 {[%clk
0:00:04.3]} 32. Kf1 {[%clk 0:00:42]} 32... Ne8 {[%clk 0:00:03.9]} 33. Be5 {[%clk
0:00:41.3]} 33... Kf8 {[%clk 0:00:02.8]} 34. Ke2 {[%clk 0:00:41.2]} 34... Ke7
{[%clk 0:00:03.2]} 35. h4 {[%clk 0:00:38.9]} 35... a6 {[%clk 0:00:03.5]} 36. h5
{[%clk 0:00:38.1]} 36... gxh5 {[%clk 0:00:03.9]} 37. gxh5 {[%clk 0:00:39]} 37...
Nef6 {[%clk 0:00:03]} 38. h6 {[%clk 0:00:38.7]} 38... Kf8 {[%clk 0:00:01.5]} 39.
h7 {[%clk 0:00:33.2]} 1-0

[Event "*** Titled Tuesday Blitz"]
[Site "Chess.com"]
[Date "2020.11.10"]
[Round "7"]
[White "joppie2"]
[Black "TimofeevAr"]
[Result "1/2-1/2"]
[WhiteElo "2967"]
[BlackElo "2860"]
[TimeControl "180+1"]
[EndTime "11:22:13 PST"]
[Termination "Game drawn - insufficient material"]

1. Nf3 {[%clk 0:03:00.9]} 1... Nf6 {[%clk 0:02:58.4]} 2. d4 {[%clk 0:03:00.9]}
2... g6 {[%clk 0:02:58.2]} 3. c4 {[%clk 0:02:57.4]} 3... Bg7 {[%clk 0:02:58.2]}
4. Nc3 {[%clk 0:02:57.9]} 4... d5 {[%clk 0:02:58.5]} 5. cxd5 {[%clk 0:02:56.9]}
5... Nxd5 {[%clk 0:02:58.7]} 6. e4 {[%clk 0:02:57.8]} 6... Nb6 {[%clk
0:02:58.9]} 7. Be2 {[%clk 0:02:54.9]} 7... Bg4 {[%clk 0:02:58.3]} 8. Be3 {[%clk
0:02:54.7]} 8... O-O {[%clk 0:02:57.2]} 9. O-O {[%clk 0:02:54.1]} 9... Nc6
{[%clk 0:02:57.2]} 10. e5 {[%clk 0:02:52.7]} 10... Nb4 {[%clk 0:02:54.2]} 11. h3
{[%clk 0:02:52.1]} 11... Bf5 {[%clk 0:02:43.1]} 12. Rc1 {[%clk 0:02:45.6]} 12...
N4d5 {[%clk 0:02:42.2]} 13. Bg5 {[%clk 0:02:44.1]} 13... h6 {[%clk 0:02:41.2]}
14. Bd2 {[%clk 0:02:44]} 14... Be6 {[%clk 0:02:39.1]} 15. Ne4 {[%clk 0:02:42.9]}
15... Nd7 {[%clk 0:02:38.5]} 16. Bc4 {[%clk 0:02:42]} 16... c6 {[%clk
0:02:38.3]} 17. b4 {[%clk 0:02:40.2]} 17... Nc7 {[%clk 0:02:31]} 18. Bxe6 {[%clk
0:02:26.2]} 18... Nxe6 {[%clk 0:02:19.9]} 19. b5 {[%clk 0:02:17.9]} 19... Nb6
{[%clk 0:02:10.7]} 20. bxc6 {[%clk 0:02:17.6]} 20... bxc6 {[%clk 0:02:10.8]} 21.
Ba5 {[%clk 0:02:17.6]} 21... Qd5 {[%clk 0:02:09.6]} 22. Nc5 {[%clk 0:02:15.5]}
22... Nxc5 {[%clk 0:01:55.7]} 23. dxc5 {[%clk 0:02:10]} 23... Qxd1 {[%clk
0:01:55.4]} 24. Rfxd1 {[%clk 0:02:10.9]} 24... Nd5 {[%clk 0:01:55.6]} 25. Nd4
{[%clk 0:02:08]} 25... Rfc8 {[%clk 0:01:55.1]} 26. Nxc6 {[%clk 0:02:08.2]} 26...
Rxc6 {[%clk 0:01:54.5]} 27. Rxd5 {[%clk 0:02:08.7]} 27... Rac8 {[%clk
0:01:47.7]} 28. Rd8+ {[%clk 0:01:52.1]} 28... Rxd8 {[%clk 0:01:47.2]} 29. Bxd8
{[%clk 0:01:53]} 29... Kf8 {[%clk 0:01:44.2]} 30. f4 {[%clk 0:01:51.5]} 30... g5
{[%clk 0:01:40.1]} 31. g3 {[%clk 0:01:46.9]} 31... Ke8 {[%clk 0:01:32]} 32. Ba5
{[%clk 0:01:46.2]} 32... Kd7 {[%clk 0:01:32.2]} 33. Bd2 {[%clk 0:01:34.8]} 33...
f6 {[%clk 0:01:31.5]} 34. exf6 {[%clk 0:01:31.7]} 34... Bxf6 {[%clk 0:01:30.8]}
35. fxg5 {[%clk 0:01:32]} 35... hxg5 {[%clk 0:01:29.9]} 36. Kg2 {[%clk
0:01:32.4]} 36... Ra6 {[%clk 0:01:28]} 37. Rc2 {[%clk 0:01:30.9]} 37... Kc6
{[%clk 0:01:25.7]} 38. Kf3 {[%clk 0:01:30.6]} 38... Ra4 {[%clk 0:01:25.6]} 39.
Be3 {[%clk 0:01:28.8]} 39... Ra3 {[%clk 0:01:22.7]} 40. Ke4 {[%clk 0:01:26.4]}
40... e6 {[%clk 0:01:04.2]} 41. Bf2 {[%clk 0:01:16.8]} 41... Ra4+ {[%clk
0:01:03.1]} 42. Kf3 {[%clk 0:01:16.4]} 42... Be7 {[%clk 0:01:01.2]} 43. Re2
{[%clk 0:01:15.9]} 43... Kd7 {[%clk 0:00:58.8]} 44. c6+ {[%clk 0:01:14.6]} 44...
Kxc6 {[%clk 0:00:59.1]} 45. Rxe6+ {[%clk 0:01:15.1]} 45... Kd7 {[%clk
0:00:59.5]} 46. Re2 {[%clk 0:01:15.3]} 46... a6 {[%clk 0:00:58.5]} 47. Be3
{[%clk 0:01:14.8]} 47... Rc4 {[%clk 0:00:57.4]} 48. Rd2+ {[%clk 0:01:14.6]}
48... Ke6 {[%clk 0:00:57.4]} 49. Rd4 {[%clk 0:01:13.3]} 49... Rc3 {[%clk
0:00:55.5]} 50. Ke4 {[%clk 0:01:10.5]} 50... a5 {[%clk 0:00:48.8]} 51. Ra4
{[%clk 0:01:03.9]} 51... Bb4 {[%clk 0:00:48.1]} 52. g4 {[%clk 0:00:56.5]} 52...
Kd7 {[%clk 0:00:41.4]} 53. Bxg5 {[%clk 0:00:45.8]} 53... Rxh3 {[%clk 0:00:40.4]}
54. Be3 {[%clk 0:00:42]} 54... Kc6 {[%clk 0:00:38.4]} 55. a3 {[%clk 0:00:37.3]}
55... Kb5 {[%clk 0:00:38.5]} 56. axb4 {[%clk 0:00:35.6]} 56... Kxa4 {[%clk
0:00:38.7]} 57. bxa5 {[%clk 0:00:35.7]} 57... Kxa5 {[%clk 0:00:38.8]} 58. g5
{[%clk 0:00:36.2]} 58... Rg3 {[%clk 0:00:38.2]} 59. Bf4 {[%clk 0:00:35.8]} 59...
Rxg5 {[%clk 0:00:38.3]} 60. Bxg5 {[%clk 0:00:36.7]} 1/2-1/2